Workbook

Sheet TABLE OF CONTENTS
C3: Sheet Tab | D3: Description | E3: Author
B4: 1 | C4: TABLE OF CONTENTS
B5: 2 | C5: INPUTS -->
B6: 3 | C6: Acquirer Financials
B7: 4 | C7: Target Financials
B8: 5 | C8: Transaction Assumptions
B9: 6 | C9: Synergies
B10: 7 | C10: TRANSACTION -->
B11: 8 | C11: Sources and Uses
B12: 9 | C12: Goodwill
B13: 10 | C13: Pro-Forma Balance Sheet
B14: 11 | C14: Debt Issues
B15: 12 | C15: Consolidated Financials
B16: 13 | C16: CONSOLIDATION -->
B17: 14 | C17: Summary
B18: 15 | C18: EPS Chart
B19: 16 | C19: Debt Leverage Chart
B20: 17 | C20: ROE Chart
B21: 18 | C21: ROI Chart
B22: 19 | C22: Interest Coverage Chart
B23: 20 | C23: Verification
B24: 21 | C24: Rating Band Chart
B25: 22 | C25: Working Chart
B26: 23 | C26: Bond Rating Standards
B27: 24 | C27: Sheet11
B29: File Name: | D29: C:\Users\Monika\Documents\Courses\Chapter 1. Models and Analysis\3. M&A Templates and Exercises\M&A Featured Models\Consolidation Structuring Example.xls
B31: Colour Codes
B33: Last Save Date | D33: 2013-05-03T13:48:56
B34: Last Save By | D34: Usain Bolt

Sheet INPUTS -->
A1: INPUTS -->
C6: FALSE

Sheet Acquirer Financials
A1: Acquirer Financials | E1: Units | F1: Formula
A3: Year | G3: 2011 | H3: =G3+1 -> 2012 | I3: =H3+1 -> 2013 | J3: 2014 | K3: 2015 | L3: 2016 | M3: 2017 | N3: 2018 | O3: 2019
A5: Assumptions
B7: Operating Assumptions
C8: Revenues | H8: 5200 | I8: 5357.04 | J8: 5518.822608 | K8: 5685.491051 | L8: 5857.19288 | M8: 6034.080105 | N8: 6216.309325 | O8: 6404.041866
C9: Operating Expesnes | H9: 4780 | I9: 4923.744 | J9: 5071.816829 | K9: 5224.348972 | L9: 5381.474852 | M9: 5543.332944 | N9: 5710.065901 | O9: 5881.82068
C10: Capital Expenditures | H10: 425 | I10: 137.7 | J10: 151.6383 | K10: 155.4749311 | L10: 159.4125715 | M10: 163.4539746 | N10: 167.6019709 | O10: 171.8594705
B12: Interest Rates, taxes and depreciation
C13: Short-term Interest Rate | H13: 0.05 | I13: 0.05 | J13: 0.05 | K13: 0.05 | L13: 0.05 | M13: 0.05 | N13: 0.05 | O13: 0.05
C14: Tax Rate | H14: 0.4 | I14: 0.4 | J14: 0.4 | K14: 0.4 | L14: 0.4 | M14: 0.4 | N14: 0.4 | O14: 0.4
C15: Depereciation Rate | H15: 0.04 | I15: 0.04 | J15: 0.04 | K15: 0.04 | L15: 0.04 | M15: 0.04 | N15: 0.04 | O15: 0.04
B17: Financing
C18: Long Term Debt Balance | H18: 750 | I18: 750 | J18: 300 | K18: 300 | L18: 300 | M18: 300 | N18: 0 | O18: 0
C19: Long Term Debt Maturities | H19: 0 | I19: 0 | J19: 450 | K19: 0 | L19: 0 | M19: 0 | N19: 300 | O19: 0
C20: Long Term Debt Interest | H20: 36 | I20: 36 | J20: 27 | K20: 18 | L20: 18 | M20: 18 | N20: 9 | O20: 0
C21: Long Term New Issues | H21: 0 | I21: 0 | J21: 0 | K21: 0 | L21: 0 | M21: 0 | N21: 0 | O21: 0
B23: Equity Finaincing
C24: New Equity Issues | H24: 0 | I24: 0 | J24: 0 | K24: 0 | L24: 0 | M24: 0 | N24: 0 | O24: 0
C25: Price on New Shares | H25: 20 | I25: 20 | J25: 20 | K25: 20 | L25: 20 | M25: 20 | N25: 20 | O25: 20
C26: Dividend Payout Ratio | H26: 0.8 | I26: 0.8 | J26: 0.8 | K26: 0.8 | L26: 0.8 | M26: 0.8 | N26: 0.8 | O26: 0.8
B28: Other
C29: A/R Revenues | H29: 0.05 | I29: 0.05 | J29: 0.05 | K29: 0.05 | L29: 0.05 | M29: 0.05 | N29: 0.05 | O29: 0.05
C30: A/P Expenses | H30: 0.1 | I30: 0.1 | J30: 0.1 | K30: 0.1 | L30: 0.1 | M30: 0.1 | N30: 0.1 | O30: 0.1
A32: Income Statement
B33: Revenues | H33: 5200 | I33: 5357.04 | J33: 5518.822608 | K33: 5685.491051 | L33: 5857.19288 | M33: 6034.080105 | N33: 6216.309325 | O33: 6404.041866
B34: Operating Expenses | H34: 4780 | I34: 4923.744 | J34: 5071.816829 | K34: 5224.348972 | L34: 5381.474852 | M34: 5543.332944 | N34: 5710.065901 | O34: 5881.82068
C35: EBITDA | H35: 420 | I35: 433.296 | J35: 447.0057792 | K35: 461.1420785 | L35: 475.7180286 | M35: 490.7471615 | N35: 506.2434233 | O35: 522.2211861
B36: Depreciation | H36: 77 | I36: 82.508 | J36: 88.573532 | K36: 94.79252924 | L36: 101.1690321 | M36: 107.7071911 | N36: 114.4112699 | O36: 121.2856487
C37: EBIT | H37: 343 | I37: 350.788 | J37: 358.4322472 | K37: 366.3495493 | L37: 374.5489965 | M37: 383.0399705 | N37: 391.8321534 | O37: 400.9355373
B38: Short-term Interest Expense | H38: 0 | I38: 14.658 | J38: 15.2907 | K38: 38.71118149 | L38: 39.54148177 | M38: 40.19523882 | N38: 40.66643721 | O38: 55.89488622
B39: Long-term Interest Expense | H39: 36 | I39: 36 | J39: 27 | K39: 18 | L39: 18 | M39: 18 | N39: 9 | O39: 0
B40: Interest Income | H40: 0 | I40: 0 | J40: 0 | K40: 0 | L40: 0 | M40: 0 | N40: 0 | O40: 0
C41: EBT | H41: 307 | I41: 300.13 | J41: 316.1415472 | K41: 309.6383678 | L41: 317.0075147 | M41: 324.8447316 | N41: 342.1657161 | O41: 345.0406511
B42: Taxes | H42: 122.8 | I42: 120.052 | J42: 126.4566189 | K42: 123.8553471 | L42: 126.8030059 | M42: 129.9378927 | N42: 136.8662865 | O42: 138.0162604
C43: Net Income | H43: 184.2 | I43: 180.078 | J43: 189.6849283 | K43: 185.7830207 | L43: 190.2045088 | M43: 194.906839 | N43: 205.2994297 | O43: 207.0243907
A45: Cash Flow
B46: Net Income | H46: 184.2 | I46: 180.078 | J46: 189.6849283 | K46: 185.7830207 | L46: 190.2045088 | M46: 194.906839 | N46: 205.2994297 | O46: 207.0243907
C47: Depreciation | H47: 77 | I47: 82.508 | J47: 88.573532 | K47: 94.79252924 | L47: 101.1690321 | M47: 107.7071911 | N47: 114.4112699 | O47: 121.2856487
C48: Working Capital Change | H48: 82 | I48: -6.5224 | J48: -6.71815248 | K48: -6.919792205 | L48: -7.12749648 | M48: -7.341447955 | N48: -7.561834786 | O48: -7.788850802
B49: Operating Cash Flow | H49: 179.2 | I49: 269.1084 | J49: 284.9766128 | K49: 287.4953421 | L49: 298.5010374 | M49: 309.955478 | N49: 327.2725344 | O49: 336.0988902
C50: Capital Expenditures | H50: 425 | I50: 137.7 | J50: 151.6383 | K50: 155.4749311 | L50: 159.4125715 | M50: 163.4539746 | N50: 167.6019709 | O50: 171.8594705
B51: Cash Before Financing | H51: -245.8 | I51: 131.4084 | J51: 133.3383128 | K51: 132.0204111 | L51: 139.088466 | M51: 146.5015035 | N51: 159.6705635 | O51: 164.2394197
C52: New Equity Issues | H52: 0 | I52: 0 | J52: 0 | K52: 0 | L52: 0 | M52: 0 | N52: 0 | O52: 0
C53: New Debt Issues | H53: 0 | I53: 0 | J53: 0 | K53: 0 | L53: 0 | M53: 0 | N53: 0 | O53: 0
C54: Debt Re-payments | H54: 0 | I54: 0 | J54: 450 | K54: 0 | L54: 0 | M54: 0 | N54: 300 | O54: 0
C55: Dividends | H55: 147.36 | I55: 144.0624 | J55: 151.7479427 | K55: 148.6264165 | L55: 152.1636071 | M55: 155.9254712 | N55: 164.2395438 | O55: 165.6195125
C56: Cash After Dividends | H56: -393.16 | I56: -12.654 | J56: -468.4096299 | K56: -16.60600548 | L56: -13.07514112 | M56: -9.423967727 | N56: -304.5689803 | O56: -1.380092783
A58: Balance Sheet
B59: Assets
C60: Cash and Temporary Securities | G60: 100 | H60: 0 | I60: 0 | J60: 0 | K60: 0 | L60: 0 | M60: 0 | N60: 0 | O60: 0
C61: Current Assets | G61: 200 | H61: 260 | I61: 267.852 | J61: 275.9411304 | K61: 284.2745525 | L61: 292.859644 | M61: 301.7040053 | N61: 310.8154662 | O61: 320.2020933
C62: Gross Plant | G62: 1500 | H62: 1925 | I62: 2062.7 | J62: 2214.3383 | K62: 2369.813231 | L62: 2529.225803 | M62: 2692.679777 | N62: 2860.281748 | O62: 3032.141218
C63: Accumulated Depreciation | G63: 100 | H63: 177 | I63: 259.508 | J63: 348.081532 | K63: 442.8740612 | L63: 544.0430933 | M63: 651.7502844 | N63: 766.1615543 | O63: 887.4472031
C64: Net Plant | G64: 1400 | H64: 1748 | I64: 1803.192 | J64: 1866.256768 | K64: 1926.93917 | L64: 1985.182709 | M64: 2040.929493 | N64: 2094.120194 | O64: 2144.694015
B65: Total Assets | G65: 1700 | H65: 2008 | I65: 2071.044 | J65: 2142.197898 | K65: 2211.213722 | L65: 2278.042353 | M65: 2342.633498 | N65: 2404.93566 | O65: 2464.896109
B67: Liabilities and Capital
C68: Current Liabilities | G68: 500 | H68: 478 | I68: 492.3744 | J68: 507.1816829 | K68: 522.4348972 | L68: 538.1474852 | M68: 554.3332944 | N68: 571.0065901 | O68: 588.182068
C69: Debt
D70: Revolver Balance | H70: 293.16 | I70: 305.814 | J70: 774.2236299 | K70: 790.8296353 | L70: 803.9047765 | M70: 813.3287442 | N70: 1117.897724 | O70: 1119.277817
D71: Long-term Debt | H71: 750 | I71: 750 | J71: 300 | K71: 300 | L71: 300 | M71: 300 | N71: 0 | O71: 0
C72: Total Debt | G72: 750 | H72: 1043.16 | I72: 1055.814 | J72: 1074.22363 | K72: 1090.829635 | L72: 1103.904776 | M72: 1113.328744 | N72: 1117.897724 | O72: 1119.277817
C73: Equity | G73: 450 | H73: 486.84 | I73: 522.8556 | J73: 560.7925857 | K73: 597.9491898 | L73: 635.9900916 | M73: 674.9714594 | N73: 716.0313453 | O73: 757.4362234
B74: Liabilities and Capital | G74: 1700 | H74: 2008 | I74: 2071.044 | J74: 2142.197898 | K74: 2211.213722 | L74: 2278.042353 | M74: 2342.633498 | N74: 2404.93566 | O74: 2464.896109
H75: 0 | I75: 0 | J75: 0 | K75: 0 | L75: 0 | M75: 0 | N75: 0 | O75: 0
A76: Revolver and Cash Balance
B78: Working Capital | G78: -300 | H78: -218 | I78: -224.5224 | J78: -231.2405525 | K78: -238.1603447 | L78: -245.2878412 | M78: -252.6292891 | N78: -260.1911239 | O78: -267.9799747
B79: Working Capital Change | H79: 82 | I79: -6.5224 | J79: -6.71815248 | K79: -6.919792205 | L79: -7.12749648 | M79: -7.341447955 | N79: -7.561834786 | O79: -7.788850802
B81: Beginning Balance of Cash and Revolver | G81: 100 | H81: 100 | I81: -293.16 | J81: -305.814 | K81: -774.2236299 | L81: -790.8296353 | M81: -803.9047765 | N81: -813.3287442 | O81: -1117.897724
B82: Add: Net Cash Flow | H82: -393.16 | I82: -12.654 | J82: -468.4096299 | K82: -16.60600548 | L82: -13.07514112 | M82: -9.423967727 | N82: -304.5689803 | O82: -1.380092783
B83: Ending Balance | G83: 100 | H83: -293.16 | I83: -305.814 | J83: -774.2236299 | K83: -790.8296353 | L83: -803.9047765 | M83: -813.3287442 | N83: -1117.897724 | O83: -1119.277817
B85: Short-term Debt | H85: 293.16 | I85: 305.814 | J85: 774.2236299 | K85: 790.8296353 | L85: 803.9047765 | M85: 813.3287442 | N85: 1117.897724 | O85: 1119.277817
B86: Cash Balance | H86: 0 | I86: 0 | J86: 0 | K86: 0 | L86: 0 | M86: 0 | N86: 0 | O86: 0
B88: Short-term Interest | H88: 0 | I88: 14.658 | J88: 15.2907 | K88: 38.71118149 | L88: 39.54148177 | M88: 40.19523882 | N88: 40.66643721 | O88: 55.89488622
B89: Interest Income on Cash Balance | H89: 0 | I89: 0 | J89: 0 | K89: 0 | L89: 0 | M89: 0 | N89: 0 | O89: 0
A91: Share Balance
B92: Beginning Shares | G92: 80 | H92: 80 | I92: 80 | J92: 80 | K92: 80 | L92: 80 | M92: 80 | N92: 80 | O92: 80
B93: Add: New Share Issues | H93: 0 | I93: 0 | J93: 0 | K93: 0 | L93: 0 | M93: 0 | N93: 0 | O93: 0
B94: Ending Shares | G94: 80 | H94: 80 | I94: 80 | J94: 80 | K94: 80 | L94: 80 | M94: 80 | N94: 80 | O94: 80
B96: EPS | H96: 2.3025 | I96: 2.250975 | J96: 2.371061604 | K96: 2.322287758 | L96: 2.37755636 | M96: 2.436335487 | N96: 2.566242871 | O96: 2.587804883
B97: Interest Coverage | H97: 9.527777778 | I97: 6.924631845 | J97: 8.475438978 | K97: 6.459917421 | L97: 6.509199711 | M97: 6.581981245 | N97: 7.889274435 | O97: 7.173027166
B98: Debt Leverage | H98: 0.6818039216 | I98: 0.6687998553 | J98: 0.6570109945 | K98: 0.645928063 | L98: 0.6344663673 | M98: 0.6225625552 | N98: 0.609564319 | O98: 0.5964029644
B99: ROE | H99: 0.3783583929 | I99: 0.3444124917 | J99: 0.3382443584 | K99: 0.3107003469 | L99: 0.2990683524 | M99: 0.2887630822 | N99: 0.286718495 | O99: 0.2733225376
B100: ROI | H100: 0.1345098039 | I100: 0.1333228942 | J100: 0.1315334651 | K100: 0.1301589801 | L100: 0.1291626305 | M100: 0.1285153252 | N100: 0.1281943211 | O100: 0.1281821935

Sheet Target Financials
A1: Target Financials | E1: Units | F1: Formula
A3: Year | G3: 2011 | H3: =G3+1 -> 2012 | I3: =H3+1 -> 2013 | J3: 2014 | K3: 2015 | L3: 2016 | M3: 2017 | N3: 2018 | O3: 2019
A5: Assumptions
B7: Operating Assumptions
C8: Revenues | H8: 742.5 | I8: 833.085 | J8: 934.72137 | K8: 1048.757377 | L8: 1176.705777 | M8: 1320.263882 | N8: 1481.336076 | O8: 1662.059077
C9: Operating Expesnes | H9: 510.6136364 | I9: 569.1994091 | J9: 634.8584643 | K9: 708.4522587 | L9: 790.9473174 | M9: 883.4280508 | N9: 987.1111369 | O9: 1103.361657
C10: Capital Expenditures | H10: 137.3636364 | I10: 154.02 | J10: 172.7064 | K10: 193.67046 | L10: 217.1900129 | M10: 243.5767864 | N10: 273.1805381 | O10: 306.3936952
B12: Interest Rates, taxes and depreciation
C13: Short-term Interest Rate | H13: 0.07 | I13: 0.07 | J13: 0.07 | K13: 0.07 | L13: 0.07 | M13: 0.07 | N13: 0.07 | O13: 0.07
C14: Tax Rate | H14: 0.2 | I14: 0.2 | J14: 0.2 | K14: 0.2 | L14: 0.2 | M14: 0.2 | N14: 0.2 | O14: 0.2
C15: Depereciation Rate | H15: 0.04 | I15: 0.04 | J15: 0.04 | K15: 0.04 | L15: 0.04 | M15: 0.04 | N15: 0.04 | O15: 0.04
B17: Financing
C18: Long Term Debt Balance | H18: 300 | I18: 300 | J18: 150 | K18: 150 | L18: 150 | M18: 150 | N18: 0 | O18: 0
C19: Long Term Debt Maturities | H19: 0 | I19: 0 | J19: 150 | K19: 0 | L19: 0 | M19: 0 | N19: 150 | O19: 0
C20: Long Term Debt Interest | H20: 18 | I20: 18 | J20: 15 | K20: 12 | L20: 12 | M20: 12 | N20: 6 | O20: 0
C21: Long Term New Issues | H21: 0 | I21: 0 | J21: 0 | K21: 0 | L21: 0 | M21: 0 | N21: 0 | O21: 0
B23: Equity Finaincing
C24: New Equity Issues | H24: 0 | I24: 0 | J24: 0 | K24: 0 | L24: 0 | M24: 0 | N24: 0 | O24: 0
C25: Price on New Shares | H25: 20 | I25: 20 | J25: 20 | K25: 20 | L25: 20 | M25: 20 | N25: 20 | O25: 20
C26: Dividend Payout Ratio | H26: 0.8 | I26: 0.8 | J26: 0.8 | K26: 0.8 | L26: 0.8 | M26: 0.8 | N26: 0.8 | O26: 0.8
B28: Other
C29: A/R Revenues | H29: 0.12 | I29: 0.12 | J29: 0.12 | K29: 0.12 | L29: 0.12 | M29: 0.12 | N29: 0.12 | O29: 0.12
C30: A/P Expenses | H30: 0.1 | I30: 0.1 | J30: 0.1 | K30: 0.1 | L30: 0.1 | M30: 0.1 | N30: 0.1 | O30: 0.1
A32: Income Statement
B33: Revenues | H33: 742.5 | I33: 833.085 | J33: 934.72137 | K33: 1048.757377 | L33: 1176.705777 | M33: 1320.263882 | N33: 1481.336076 | O33: 1662.059077
B34: Operating Expenses | H34: 510.6136364 | I34: 569.1994091 | J34: 634.8584643 | K34: 708.4522587 | L34: 790.9473174 | M34: 883.4280508 | N34: 987.1111369 | O34: 1103.361657
C35: EBITDA | H35: 231.8863636 | I35: 263.8855909 | J35: 299.8629057 | K35: 340.3051184 | L35: 385.7584598 | M35: 436.8358312 | N35: 494.2249387 | O35: 558.69742
B36: Depreciation | H36: 37.49454545 | I36: 43.65534545 | J36: 50.56360145 | K36: 58.31041985 | L36: 66.99802037 | M36: 76.74109183 | N36: 87.66831335 | O36: 99.92406116
C37: EBIT | H37: 194.3918182 | I37: 220.2302455 | J37: 249.2993043 | K37: 281.9946986 | L37: 318.7604394 | M37: 360.0947394 | N37: 406.5566253 | O37: 458.7733588
B38: Short-term Interest Expense | H38: 0 | I38: 6.277952545 | J38: 12.15962627 | K38: 29.1157899 | L38: 36.33589483 | M38: 44.31788056 | N38: 53.15260131 | O38: 73.37475679
B39: Long-term Interest Expense | H39: 18 | I39: 18 | J39: 15 | K39: 12 | L39: 12 | M39: 12 | N39: 6 | O39: 0
B40: Interest Income | H40: 0 | I40: 0 | J40: 0 | K40: 0 | L40: 0 | M40: 0 | N40: 0 | O40: 0
C41: EBT | H41: 176.3918182 | I41: 195.9522929 | J41: 222.139678 | K41: 240.8789087 | L41: 270.4245446 | M41: 303.7768588 | N41: 347.404024 | O41: 385.398602
B42: Taxes | H42: 35.27836364 | I42: 39.19045858 | J42: 44.4279356 | K42: 48.17578173 | L42: 54.08490892 | M42: 60.75537176 | N42: 69.4808048 | O42: 77.0797204
C43: Net Income | H43: 141.1134545 | I43: 156.7618343 | J43: 177.7117424 | K43: 192.7031269 | L43: 216.3396357 | M43: 243.021487 | N43: 277.9232192 | O43: 308.3188816
A45: Cash Flow
B46: Net Income | H46: 141.1134545 | I46: 156.7618343 | J46: 177.7117424 | K46: 192.7031269 | L46: 216.3396357 | M46: 243.021487 | N46: 277.9232192 | O46: 308.3188816
C47: Depreciation | H47: 37.49454545 | I47: 43.65534545 | J47: 50.56360145 | K47: 58.31041985 | L47: 66.99802037 | M47: 76.74109183 | N47: 87.66831335 | O47: 99.92406116
C48: Working Capital Change | H48: 18.03863636 | I48: 5.011622727 | J48: 5.630458882 | K48: 6.324941411 | L48: 7.104302139 | M48: 7.978899234 | N48: 8.960354619 | O48: 10.06170816
B49: Operating Cash Flow | H49: 160.5693636 | I49: 195.4055571 | J49: 222.644885 | K49: 244.6886054 | L49: 276.2333539 | M49: 311.7836796 | N49: 356.6311779 | O49: 398.1812346
C50: Capital Expenditures | H50: 137.3636364 | I50: 154.02 | J50: 172.7064 | K50: 193.67046 | L50: 217.1900129 | M50: 243.5767864 | N50: 273.1805381 | O50: 306.3936952
B51: Cash Before Financing | H51: 23.20572727 | I51: 41.38555705 | J51: 49.93848497 | K51: 51.01814537 | L51: 59.043341 | M51: 68.20689323 | N51: 83.45063983 | O51: 91.78753943
C52: New Equity Issues | H52: 0 | I52: 0 | J52: 0 | K52: 0 | L52: 0 | M52: 0 | N52: 0 | O52: 0
C53: New Debt Issues | H53: 0 | I53: 0 | J53: 0 | K53: 0 | L53: 0 | M53: 0 | N53: 0 | O53: 0
C54: Debt Re-payments | H54: 0 | I54: 0 | J54: 150 | K54: 0 | L54: 0 | M54: 0 | N54: 150 | O54: 0
C55: Dividends | H55: 112.8907636 | I55: 125.4094675 | J55: 142.1693939 | K55: 154.1625015 | L55: 173.0717085 | M55: 194.4171896 | N55: 222.3385754 | O55: 246.6551053
C56: Cash After Dividends | H56: -89.68503636 | I56: -84.02391041 | J56: -242.2309089 | K56: -103.1443562 | L56: -114.0283675 | M56: -126.2102964 | N56: -288.8879355 | O56: -154.8675659
A58: Balance Sheet
B59: Assets
C60: Cash and Temporary Securities | G60: 0 | H60: 0 | I60: 0 | J60: 0 | K60: 0 | L60: 0 | M60: 0 | N60: 0 | O60: 0
C61: Current Assets | G61: 80 | H61: 89.1 | I61: 99.9702 | J61: 112.1665644 | K61: 125.8508853 | L61: 141.2046933 | M61: 158.4316658 | N61: 177.7603291 | O61: 199.4470892
C62: Gross Plant | G62: 800 | H62: 937.3636364 | I62: 1091.383636 | J62: 1264.090036 | K62: 1457.760496 | L62: 1674.950509 | M62: 1918.527296 | N62: 2191.707834 | O62: 2498.101529
C63: Accumulated Depreciation | G63: 100 | H63: 137.4945455 | I63: 181.1498909 | J63: 231.7134924 | K63: 290.0239122 | L63: 357.0219326 | M63: 433.7630244 | N63: 521.4313378 | O63: 621.3553989
C64: Net Plant | G64: 700 | H64: 799.8690909 | I64: 910.2337455 | J64: 1032.376544 | K64: 1167.736584 | L64: 1317.928577 | M64: 1484.764271 | N64: 1670.276496 | O64: 1876.74613
B65: Total Assets | G65: 780 | H65: 888.9690909 | I65: 1010.203945 | J65: 1144.543108 | K65: 1293.587469 | L65: 1459.13327 | M65: 1643.195937 | N65: 1848.036825 | O65: 2076.193219
B67: Liabilities and Capital
C68: Current Liabilities | G68: 60 | H68: 51.06136364 | I68: 56.91994091 | J68: 63.48584643 | K68: 70.84522587 | L68: 79.09473174 | M68: 88.34280508 | N68: 98.71111369 | O68: 110.3361657
C69: Debt
D70: Revolver Balance | H70: 89.68503636 | I70: 173.7089468 | J70: 415.9398557 | K70: 519.0842119 | L70: 633.1125794 | M70: 759.3228758 | N70: 1048.210811 | O70: 1203.078377
D71: Long-term Debt | H71: 300 | I71: 300 | J71: 150 | K71: 150 | L71: 150 | M71: 150 | N71: 0 | O71: 0
C72: Total Debt | G72: 300 | H72: 389.6850364 | I72: 473.7089468 | J72: 565.9398557 | K72: 669.0842119 | L72: 783.1125794 | M72: 909.3228758 | N72: 1048.210811 | O72: 1203.078377
C73: Equity | G73: 420 | H73: 448.2226909 | I73: 479.5750578 | J73: 515.1174063 | K73: 553.6580316 | L73: 596.9259588 | M73: 645.5302562 | N73: 701.1149 | O73: 762.7786763
B74: Liabilities and Capital | G74: 780 | H74: 888.9690909 | I74: 1010.203945 | J74: 1144.543108 | K74: 1293.587469 | L74: 1459.13327 | M74: 1643.195937 | N74: 1848.036825 | O74: 2076.193219
H75: 0 | I75: 0 | J75: 0 | K75: 0 | L75: 0 | M75: 0 | N75: 0 | O75: 0
A76: Revolver and Cash Balance
B78: Working Capital | G78: 20 | H78: 38.03863636 | I78: 43.05025909 | J78: 48.68071797 | K78: 55.00565938 | L78: 62.10996152 | M78: 70.08886076 | N78: 79.04921538 | O78: 89.11092353
B79: Working Capital Change | H79: 18.03863636 | I79: 5.011622727 | J79: 5.630458882 | K79: 6.324941411 | L79: 7.104302139 | M79: 7.978899234 | N79: 8.960354619 | O79: 10.06170816
B81: Beginning Balance of Cash and Revolver | G81: 0 | H81: 0 | I81: -89.68503636 | J81: -173.7089468 | K81: -415.9398557 | L81: -519.0842119 | M81: -633.1125794 | N81: -759.3228758 | O81: -1048.210811
B82: Add: Net Cash Flow | H82: -89.68503636 | I82: -84.02391041 | J82: -242.2309089 | K82: -103.1443562 | L82: -114.0283675 | M82: -126.2102964 | N82: -288.8879355 | O82: -154.8675659
B83: Ending Balance | G83: 0 | H83: -89.68503636 | I83: -173.7089468 | J83: -415.9398557 | K83: -519.0842119 | L83: -633.1125794 | M83: -759.3228758 | N83: -1048.210811 | O83: -1203.078377
B85: Short-term Debt | H85: 89.68503636 | I85: 173.7089468 | J85: 415.9398557 | K85: 519.0842119 | L85: 633.1125794 | M85: 759.3228758 | N85: 1048.210811 | O85: 1203.078377
B86: Cash Balance | H86: 0 | I86: 0 | J86: 0 | K86: 0 | L86: 0 | M86: 0 | N86: 0 | O86: 0
B88: Short-term Interest | H88: 0 | I88: 6.277952545 | J88: 12.15962627 | K88: 29.1157899 | L88: 36.33589483 | M88: 44.31788056 | N88: 53.15260131 | O88: 73.37475679
B89: Interest Income on Cash Balance | H89: 0 | I89: 0 | J89: 0 | K89: 0 | L89: 0 | M89: 0 | N89: 0 | O89: 0
A91: Share Balance
B92: Beginning Shares | G92: 40 | H92: 40 | I92: 40 | J92: 40 | K92: 40 | L92: 40 | M92: 40 | N92: 40 | O92: 40
B93: Add: New Share Issues | H93: 0 | I93: 0 | J93: 0 | K93: 0 | L93: 0 | M93: 0 | N93: 0 | O93: 0
B94: Ending Shares | G94: 40 | H94: 40 | I94: 40 | J94: 40 | K94: 40 | L94: 40 | M94: 40 | N94: 40 | O94: 40
B96: EPS | H96: 3.527836364 | I96: 3.919045858 | J96: 4.44279356 | K96: 4.817578173 | L96: 5.408490892 | M96: 6.075537176 | N96: 6.94808048 | O96: 7.70797204
B98: Share Value | G98: 15
B100: P/E Ratio | G100: 4.251897893

Sheet Transaction Assumptions
A1: Transaction Assumptions
B2: General | I2: Acquirer Debt Retired | O2: Model Verified | Q2: =Verification!E12 -> FALSE
C3: Target Company Name | F3: Target | J3: Switch for Total Debt Retirement | M3: TRUE
C4: Acquirer Company Name | F4: Acquiror
C5: Scenario Name | J5: Debt Retired | O5: Source Minus Uses | Q5: ='Sources and Uses'!G20 -> 0
C6: Transaction Date | F6: 2011-01-01 | K6: Issue 1 | O6: Goodwill | Q6: =Goodwill!H23 -> 356.2615609
B7: Transaction Financing | L7: Amount of Debt | M7: =IF(M3,'Target Financials'!G72,0) -> 300
C8: Purchase Price | L8: Interest Rate | M8: ='Target Financials'!H13 -> 0.07
D9: Equity Value - Cash Consideration | F9: 1700 | L9: Term | M9: 0
D10: Equity Value - Consideration in Shares | F10: 0
D11: Target Debt Value | F11: ='Target Financials'!H72 -> 389.6850364 | K11: Issue 2
E12: Target Enterprise Value | F12: =F9+F10+F11 -> 2089.685036 | L12: Amount of Debt | M12: 0
L13: Interest Rate | M13: 0
E14: EV/EBITDA | F14: =total_enterprise_value/'Target Financials'!H35 -> 9.011677115 | L14: Term | M14: 0
E15: P/E Ratio | F15: =equity_consideration_cash/'Target Financials'!H43 -> 12.04704403
C16: Shares Issued | J16: Asset Write-up | M16: 1000
D17: Number of Shares | F17: 59.4982502 | J17: Synergies | M17: 50
D18: Stock Price of Shares | F18: 9 | J18: Transaction Costs | M18: =0.05*total_enterprise_value -> 104.4842518
E19: Value of Shares Issued | F19: =F18*F17 -> 535.4842518 | J19: Debt Issue Costs | M19: 0
C20: Debt Issued
D21: Issue 1 | I21: On-Going Assumptions
E22: Amount of Debt | F22: 1569 | J22: Tax Rate | M22: 0.3
E23: Interest Rate | F23: 0.05 | J23: Depreciation Rate on Write-up | M23: 0.05
E24: Term | F24: 10 | J24: Interest Rate on Revolver | M24: 0.07
J25: Interest Income Rate | M25: 0.04
D26: Issue 2 | J26: Dividend Per-Share | M26: 1
E27: Amount of Debt | F27: 0
E28: Interest Rate | F28: 0 | I28: Graphs
E29: Term | F29: 0 | J29: Years on Graph | M29: 7

Sheet Synergies
A1: Synergies
E2: 2011 | F2: =E2+1 -> 2012 | G2: =F2+1 -> 2013 | H2: 2014 | I2: 2015 | J2: 2016 | K2: 2017 | L2: 2018
A4: Revenue Increases | F4: =synergie -> 50 | G4: =F4 -> 50 | H4: 50 | I4: 50 | J4: 50 | K4: 50 | L4: 50
A6: Expense Reductions
A8: Capital Expenditure Reductions

Sheet TRANSACTION -->
A1: TRANSACTION -->

Sheet Sources and Uses
A1: Sources and Uses
G2: Amount | H2: Shares
C3: Uses | G3: =YEAR(transaction_date-1) -> 2010 | H3: =G3 -> 2010
D4: Target Equity - Cash | G4: =equity_consideration_cash -> 1700
D5: Target Equity - Shares | G5: =equity_consideration_shares -> 0 | H5: =equity_consideration_shares -> 0
D6: Target Debt Retired | G6: =debt_retired_1 -> 300
D7: Transaction Fees | G7: =transaction_cost -> 104.4842518
D8: Acquirer Debt
D9: Working Capital
D10: Debt Issue Costs | G10: =debt_issue_costs -> 0
E11: Total Uses | G11: =SUM(G4:G10) -> 2104.484252
C13: Sources
D14: New Shares Issued | G14: =value_of_shares -> 535.4842518 | H14: =shares_issued -> 59.4982502
D15: New Debt Issued - 1 | G15: =debt_issue_1 -> 1569
D16: New Debt Issued - 2 | G16: =debt_2 -> 0
D17: New Preferred Issued
D18: Cash Used
E19: Total Sources | G19: =SUM(G14:G18) -> 2104.484252
D20: Difference | G20: =G19-G11 -> 0
D21: Shares Required | G21: =G20/stock_price -> 0
D22: Test | G22: =ROUND(G20,0)=0 -> TRUE
D24: Overall Model Verified | G24: =Verification!E12 -> FALSE

Sheet Goodwill
A1: Goodwill
D3: Goodwill Calculation | H3: =YEAR(transaction_date-1) -> 2010
D5: Step 1: Equity Purchase Price vs Book Value
E7: Equity Purchase Price - Total Consideration | H7: ='Sources and Uses'!G4+'Sources and Uses'!G5 -> 1700
E8: Less: Book Value of Target Company Equity | H8: ='Target Financials'!H73 -> 448.2226909
F9: Net | H9: =H7-H8 -> 1251.777309
D11: Step 2: Add Transaction Costs | H11: ='Sources and Uses'!G7 -> 104.4842518
D13: Step 3: Less Asset Write-ups
F14: Intangible Asset Write-up | H14: =write_up -> 1000
F17: Net Asset - Write-ups | H17: =H14 -> 1000
D19: Step 4: Add Liability Write-ups
F21: Net Liability Write-ups
D23: Step 5: Total Goodwill | H23: =H9+H11-H17+H21 -> 356.2615609

Sheet Pro-Forma Balance Sheet
A1: Pro-Forma Balance Sheet
G3: =YEAR(transaction_date-1) -> 2010 | H3: =YEAR(transaction_date-1) -> 2010
C4: Assets | G4: =acquirer_name -> Acquiror | H4: =target_name -> Target | I4: Debt Issue | J4: Debt Retired | K4: Cash Changes | L4: Asset Write-up | M4: Goodwill | N4: Eliminate Target Equity | O4: New Equity Issues | P4: Total Adj | Q4: Adjusted Balance Sheet
D6: Restricted Cash | P6: =SUM(I6:O6) -> 0 | Q6: =P6+H6+G6 -> 0
D7: Cash and Temporary Investments | G7: ='Acquirer Financials'!H60 -> 0 | H7: ='Target Financials'!H60 -> 0 | P7: 0 | Q7: 0
D8: Other Current Assets | G8: ='Acquirer Financials'!H61 -> 260 | H8: ='Target Financials'!H61 -> 89.1 | P8: 0 | Q8: 349.1
D9: Gross Plant Value | G9: ='Acquirer Financials'!H62 -> 1925 | H9: ='Target Financials'!H62 -> 937.3636364 | P9: 0 | Q9: 2862.363636
D10: Accumulated Depreciation | G10: ='Acquirer Financials'!H63 -> 177 | H10: ='Target Financials'!H63 -> 137.4945455 | P10: 0 | Q10: 314.4945455
E11: Net Plant | G11: ='Acquirer Financials'!H64 -> 1748 | H11: ='Target Financials'!H64 -> 799.8690909 | P11: 0 | Q11: 2547.869091
D12: Intangible Assets | L12: =Goodwill!H14 -> 1000 | P12: 1000 | Q12: 1000
D13: Deferred Debits and Goodwill | M13: =Goodwill!H23 -> 356.2615609 | P13: 356.2615609 | Q13: 356.2615609
E14: Total Assets | G14: =G11+G8 -> 2008 | H14: =H6+H7+H8+H11+H12+H13 -> 888.9690909 | I14: 0 | J14: 0 | K14: 0 | L14: 1000 | M14: 356.2615609 | N14: 0 | O14: 0 | P14: 1356.261561 | Q14: 4253.230652
C16: Liabilities and Capital
D18: Current Liabilities | G18: ='Acquirer Financials'!H68 -> 478 | H18: ='Target Financials'!H68 -> 51.06136364 | P18: =SUM(I18:O18) -> 0 | Q18: =P18+H18+G18 -> 529.0613636
D19: Short-term Debt | G19: ='Acquirer Financials'!H70 -> 293.16 | H19: ='Target Financials'!H70 -> 89.68503636 | P19: 0 | Q19: 382.8450364
D20: Existing and Input Debt | G20: ='Acquirer Financials'!H71 -> 750 | H20: ='Target Financials'!H71 -> 300 | I20: ='Sources and Uses'!G15 -> 1569 | P20: 1569 | Q20: 2619
D21: Other Liabilities and Deferred Credits | P21: 0 | Q21: 0
D22: Deferred Taxes | P22: 0 | Q22: 0
D23: Minority Interest | P23: 0 | Q23: 0
D24: Common Equity Balance | G24: ='Acquirer Financials'!H73 -> 486.84 | H24: ='Target Financials'!H73 -> 448.2226909 | N24: =-H24 -> -448.2226909 | O24: ='Sources and Uses'!G14 -> 535.4842518 | P24: =SUM(I24:O24) -> 87.26156091 | Q24: =P24+H24+G24 -> 1022.324252
E25: Total Liabilities and Capital | G25: =G18+G19+G20+G24+G21+G22+G23 -> 2008 | H25: 888.9690909 | I25: 1569 | J25: 0 | K25: 0 | L25: 0 | M25: 0 | N25: -448.2226909 | O25: 535.4842518 | P25: 1656.261561 | Q25: 4553.230652
G27: =G25=G14 -> TRUE | H27: =H25=H14 -> TRUE | Q27: =Q25=Q14 -> FALSE
C28: Shares | G28: ='Acquirer Financials'!H94 -> 80 | P28: =shares_issued -> 59.4982502 | Q28: =P28+G28 -> 139.4982502

Sheet Debt Issues
A1: Debt Issues
A2: Total Debt Issues | E2: ='Pro-Forma Balance Sheet'!H3 -> 2010 | F2: =E2+1 -> 2011 | G2: 2012 | H2: 2013 | I2: 2014 | J2: 2015 | K2: 2016 | L2: 2017
A3: Aggregation of All Debt Issues
B4: New Issues | E4: =E12+E19+E26+E33-E40-E47 -> 1269 | F4: 0 | G4: 0 | H4: 0 | I4: 0 | J4: 0 | K4: 0 | L4: 0
B5: Debt Maturities | E5: 0 | F5: 0 | G5: 600 | H5: 0 | I5: 0 | J5: 0 | K5: 450 | L5: 0
B6: Ending Balance | E6: =E15+E21+E28+E35-E42-E49 -> 2019 | F6: 2319 | G6: 1719 | H6: 1719 | I6: 1719 | J6: 1719 | K6: 1269 | L6: 1269
B7: Interest Expense | E7: 82.725 | F7: 111.45 | G7: 99.45 | H7: 87.45 | I7: 87.45 | J7: 87.45 | K7: 72.45 | L7: 57.45
A9: Check | E9: =E6='Pro-Forma Balance Sheet'!Q20 -> FALSE
A11: Target Existing Debt
B12: New Issues | E12: ='Target Financials'!H21 -> 0 | F12: ='Target Financials'!I21 -> 0 | G12: ='Target Financials'!J21 -> 0 | H12: ='Target Financials'!K21 -> 0 | I12: ='Target Financials'!L21 -> 0 | J12: ='Target Financials'!M21 -> 0 | K12: ='Target Financials'!N21 -> 0 | L12: ='Target Financials'!O21 -> 0
B13: Debt Maturities | E13: ='Target Financials'!H19 -> 0 | F13: =MIN('Target Financials'!I19,E15) -> 0 | G13: =MIN('Target Financials'!J19,F15) -> 150 | H13: =MIN('Target Financials'!K19,G15) -> 0 | I13: =MIN('Target Financials'!L19,H15) -> 0 | J13: =MIN('Target Financials'!M19,I15) -> 0 | K13: =MIN('Target Financials'!N19,J15) -> 150 | L13: =MIN('Target Financials'!O19,K15) -> 0
B14: Retired Debt | E14: =debt_retired_1 -> 300
B15: Ending Balance | E15: ='Target Financials'!H18-E14 -> 0 | F15: ='Target Financials'!I18 -> 300 | G15: ='Target Financials'!J18 -> 150 | H15: ='Target Financials'!K18 -> 150 | I15: ='Target Financials'!L18 -> 150 | J15: ='Target Financials'!M18 -> 150 | K15: ='Target Financials'!N18 -> 0 | L15: ='Target Financials'!O18 -> 0
B16: Interest Expense | E16: ='Target Financials'!H20 -> 18 | F16: ='Target Financials'!I20 -> 18 | G16: ='Target Financials'!J20 -> 15 | H16: ='Target Financials'!K20 -> 12 | I16: ='Target Financials'!L20 -> 12 | J16: ='Target Financials'!M20 -> 12 | K16: ='Target Financials'!N20 -> 6 | L16: ='Target Financials'!O20 -> 0
A18: Acquirer Existing Debt
B19: New Issues | E19: ='Acquirer Financials'!H21 -> 0 | F19: ='Acquirer Financials'!I21 -> 0 | G19: ='Acquirer Financials'!J21 -> 0 | H19: ='Acquirer Financials'!K21 -> 0 | I19: ='Acquirer Financials'!L21 -> 0 | J19: ='Acquirer Financials'!M21 -> 0 | K19: ='Acquirer Financials'!N21 -> 0 | L19: ='Acquirer Financials'!O21 -> 0
B20: Debt Maturities | E20: ='Acquirer Financials'!H19 -> 0 | F20: ='Acquirer Financials'!I19 -> 0 | G20: ='Acquirer Financials'!J19 -> 450 | H20: ='Acquirer Financials'!K19 -> 0 | I20: ='Acquirer Financials'!L19 -> 0 | J20: ='Acquirer Financials'!M19 -> 0 | K20: ='Acquirer Financials'!N19 -> 300 | L20: ='Acquirer Financials'!O19 -> 0
B21: Ending Balance | E21: ='Acquirer Financials'!H18 -> 750 | F21: ='Acquirer Financials'!I18 -> 750 | G21: ='Acquirer Financials'!J18 -> 300 | H21: ='Acquirer Financials'!K18 -> 300 | I21: ='Acquirer Financials'!L18 -> 300 | J21: ='Acquirer Financials'!M18 -> 300 | K21: ='Acquirer Financials'!N18 -> 0 | L21: ='Acquirer Financials'!O18 -> 0
B22: Interest Expense | E22: ='Acquirer Financials'!H20 -> 36 | F22: ='Acquirer Financials'!I20 -> 36 | G22: ='Acquirer Financials'!J20 -> 27 | H22: ='Acquirer Financials'!K20 -> 18 | I22: ='Acquirer Financials'!L20 -> 18 | J22: ='Acquirer Financials'!M20 -> 18 | K22: ='Acquirer Financials'!N20 -> 9 | L22: ='Acquirer Financials'!O20 -> 0
A24: New Debt Issued - 1
B25: Beginning Balance | E25: 0 | F25: =E28 -> 1569 | G25: =F28 -> 1569 | H25: 1569 | I25: 1569 | J25: 1569 | K25: 1569 | L25: 1569
B26: New Issues | E26: =debt_issue_1 -> 1569 | F26: 0 | G26: 0 | H26: 0 | I26: 0 | J26: 0 | K26: 0 | L26: 0
B27: Debt Maturities | E27: =IF(E2=debt_term_1+'Sources and Uses'!G3,'Debt Issues'!E25,0) -> 0 | F27: =IF(F2=debt_term_1+'Sources and Uses'!H3,'Debt Issues'!F25,0) -> 0 | G27: =IF(G2=debt_term_1+'Sources and Uses'!I2,'Debt Issues'!G25,0) -> 0 | H27: =IF(H2=debt_term_1+'Sources and Uses'!J2,'Debt Issues'!H25,0) -> 0 | I27: =IF(I2=debt_term_1+'Sources and Uses'!K2,'Debt Issues'!I25,0) -> 0 | J27: =IF(J2=debt_term_1+'Sources and Uses'!L2,'Debt Issues'!J25,0) -> 0 | K27: =IF(K2=debt_term_1+'Sources and Uses'!M2,'Debt Issues'!K25,0) -> 0 | L27: =IF(L2=debt_term_1+'Sources and Uses'!N2,'Debt Issues'!L25,0) -> 0
B28: Ending Balance | E28: =E25+E26-E27 -> 1569 | F28: =F25+F26-F27 -> 1569 | G28: =G25+G26-G27 -> 1569 | H28: 1569 | I28: 1569 | J28: 1569 | K28: 1569 | L28: 1569
B29: Interest Expense | E29: =AVERAGE(E28,E25)*debt_rate_1 -> 39.225 | F29: 78.45 | G29: 78.45 | H29: 78.45 | I29: 78.45 | J29: 78.45 | K29: 78.45 | L29: 78.45
A31: New Debt Issued - 2
B32: Beginning Balance | E32: 0 | F32: =E35 -> 0 | G32: =F35 -> 0 | H32: 0 | I32: 0 | J32: 0 | K32: 0 | L32: 0
B33: New Issues | E33: =debt_2 -> 0 | F33: 0 | G33: 0 | H33: 0 | I33: 0 | J33: 0 | K33: 0 | L33: 0
B34: Debt Maturities | E34: =IF(E2=debt_term_2+'Sources and Uses'!G3,'Debt Issues'!E32,0) -> 0 | F34: =IF(F2=debt_term_2+'Sources and Uses'!H3,'Debt Issues'!F32,0) -> 0 | G34: =IF(G2=debt_term_2+'Sources and Uses'!I2,'Debt Issues'!G32,0) -> 0 | H34: =IF(H2=debt_term_2+'Sources and Uses'!J2,'Debt Issues'!H32,0) -> 0 | I34: =IF(I2=debt_term_2+'Sources and Uses'!K2,'Debt Issues'!I32,0) -> 0 | J34: =IF(J2=debt_term_2+'Sources and Uses'!L2,'Debt Issues'!J32,0) -> 0 | K34: =IF(K2=debt_term_2+'Sources and Uses'!M2,'Debt Issues'!K32,0) -> 0 | L34: =IF(L2=debt_term_2+'Sources and Uses'!N2,'Debt Issues'!L32,0) -> 0
B35: Ending Balance | E35: =E32+E33-E34 -> 0 | F35: =F32+F33-F34 -> 0 | G35: =G32+G33-G34 -> 0 | H35: 0 | I35: 0 | J35: 0 | K35: 0 | L35: 0
B36: Interest Expense | E36: =AVERAGE(E35,E32)*debt_rate_2 -> 0 | F36: 0 | G36: 0 | H36: 0 | I36: 0 | J36: 0 | K36: 0 | L36: 0
A38: Debt Retired - 1
B39: Beginning Balance | E39: 0 | F39: =E42 -> 300 | G39: =F42 -> 300 | H39: 300 | I39: 300 | J39: 300 | K39: 300 | L39: 300
B40: New Issues | E40: =debt_retired_1 -> 300 | F40: 0 | G40: 0 | H40: 0 | I40: 0 | J40: 0 | K40: 0 | L40: 0
B41: Debt Maturities
B42: Ending Balance | E42: =E39+E40-E41 -> 300 | F42: =F39+F40-F41 -> 300 | G42: =G39+G40-G41 -> 300 | H42: 300 | I42: 300 | J42: 300 | K42: 300 | L42: 300
B43: Interest Expense | E43: =AVERAGE(E42,E39)*debt_retire_rate_1 -> 10.5 | F43: 21 | G43: 21 | H43: 21 | I43: 21 | J43: 21 | K43: 21 | L43: 21
A45: Debt Retired - 2
B46: Beginning Balance | E46: 0 | F46: =E49 -> 0 | G46: =F49 -> 0 | H46: 0 | I46: 0 | J46: 0 | K46: 0 | L46: 0
B47: New Issues | E47: ='Transaction Assumptions'!M12 -> 0 | F47: 0 | G47: 0 | H47: 0 | I47: 0 | J47: 0 | K47: 0 | L47: 0
B48: Debt Maturities
B49: Ending Balance | E49: =E46+E47-E48 -> 0 | F49: =F46+F47-F48 -> 0 | G49: =G46+G47-G48 -> 0 | H49: 0 | I49: 0 | J49: 0 | K49: 0 | L49: 0
B50: Interest Expense | E50: =AVERAGE(E49,E46)*'Transaction Assumptions'!$M$13 -> 0 | F50: =AVERAGE(F49,F46)*'Transaction Assumptions'!$M$13 -> 0 | G50: =AVERAGE(G49,G46)*'Transaction Assumptions'!$M$13 -> 0 | H50: =AVERAGE(H49,H46)*'Transaction Assumptions'!$M$13 -> 0 | I50: =AVERAGE(I49,I46)*'Transaction Assumptions'!$M$13 -> 0 | J50: =AVERAGE(J49,J46)*'Transaction Assumptions'!$M$13 -> 0 | K50: =AVERAGE(K49,K46)*'Transaction Assumptions'!$M$13 -> 0 | L50: =AVERAGE(L49,L46)*'Transaction Assumptions'!$M$13 -> 0

Sheet Consolidated Financials
A1: Consolidated Financials
A2: Year | E2: =YEAR(transaction_date) -> 2011 | F2: =E2+1 -> 2012 | G2: =F2+1 -> 2013 | H2: 2014 | I2: 2015 | J2: 2016 | K2: 2017 | L2: 2018
A4: Assumptions
B6: Interest Rate on Revolver | F6: =revolver_rate -> 0.07 | G6: 0.07 | H6: 0.07 | I6: 0.07 | J6: 0.07 | K6: 0.07 | L6: 0.07
B7: Interest Rate on Cash Balance | F7: =income_rate -> 0.04 | G7: 0.04 | H7: 0.04 | I7: 0.04 | J7: 0.04 | K7: 0.04 | L7: 0.04
B8: Income Tax Rate | F8: =tax_rate -> 0.3 | G8: 0.3 | H8: 0.3 | I8: 0.3 | J8: 0.3 | K8: 0.3 | L8: 0.3
B9: Dividend Per Share | F9: =div_per_share -> 1 | G9: 1 | H9: 1 | I9: 1 | J9: 1 | K9: 1 | L9: 1
A11: Income Statement
B12: Revenues
C13: Target | F13: ='Target Financials'!I33 -> 833.085 | G13: ='Target Financials'!J33 -> 934.72137 | H13: ='Target Financials'!K33 -> 1048.757377 | I13: ='Target Financials'!L33 -> 1176.705777 | J13: ='Target Financials'!M33 -> 1320.263882 | K13: ='Target Financials'!N33 -> 1481.336076 | L13: ='Target Financials'!O33 -> 1662.059077
C14: Acquirer | F14: ='Acquirer Financials'!I33 -> 5357.04 | G14: ='Acquirer Financials'!J33 -> 5518.822608 | H14: ='Acquirer Financials'!K33 -> 5685.491051 | I14: ='Acquirer Financials'!L33 -> 5857.19288 | J14: ='Acquirer Financials'!M33 -> 6034.080105 | K14: ='Acquirer Financials'!N33 -> 6216.309325 | L14: ='Acquirer Financials'!O33 -> 6404.041866
C15: Synergies | F15: =Synergies!E4 -> 0 | G15: =Synergies!F4 -> 50 | H15: =Synergies!G4 -> 50 | I15: =Synergies!H4 -> 50 | J15: =Synergies!I4 -> 50 | K15: =Synergies!J4 -> 50 | L15: =Synergies!K4 -> 50
D16: Total | F16: =F13+F14+F15 -> 6190.125 | G16: 6503.543978 | H16: 6784.248428 | I16: 7083.898658 | J16: 7404.343987 | K16: 7747.6454 | L16: 8116.100943
B17: Operating Expenses
C18: Target | F18: ='Target Financials'!I34 -> 569.1994091 | G18: ='Target Financials'!J34 -> 634.8584643 | H18: ='Target Financials'!K34 -> 708.4522587 | I18: ='Target Financials'!L34 -> 790.9473174 | J18: ='Target Financials'!M34 -> 883.4280508 | K18: ='Target Financials'!N34 -> 987.1111369 | L18: ='Target Financials'!O34 -> 1103.361657
C19: Acquirer | F19: ='Acquirer Financials'!I34 -> 4923.744 | G19: ='Acquirer Financials'!J34 -> 5071.816829 | H19: ='Acquirer Financials'!K34 -> 5224.348972 | I19: ='Acquirer Financials'!L34 -> 5381.474852 | J19: ='Acquirer Financials'!M34 -> 5543.332944 | K19: ='Acquirer Financials'!N34 -> 5710.065901 | L19: ='Acquirer Financials'!O34 -> 5881.82068
C20: Synergies | F20: =Synergies!E6 -> 0 | G20: =Synergies!F6 -> 0 | H20: =Synergies!G6 -> 0 | I20: =Synergies!H6 -> 0 | J20: =Synergies!I6 -> 0 | K20: =Synergies!J6 -> 0 | L20: =Synergies!K6 -> 0
D21: Total | F21: =F18+F19-F20 -> 5492.943409 | G21: =G18+G19-G20 -> 5706.675293 | H21: 5932.801231 | I21: 6172.422169 | J21: 6426.760995 | K21: 6697.177038 | L21: 6985.182337
B22: EBITDA | F22: =F16-F21 -> 697.1815909 | G22: =G16-G21 -> 796.8686849 | H22: 851.4471969 | I22: 911.4764884 | J22: 977.5829927 | K22: 1050.468362 | L22: 1130.918606
B23: Depreciation
C24: Target | F24: ='Target Financials'!I36 -> 43.65534545 | G24: ='Target Financials'!J36 -> 50.56360145 | H24: ='Target Financials'!K36 -> 58.31041985 | I24: ='Target Financials'!L36 -> 66.99802037 | J24: ='Target Financials'!M36 -> 76.74109183 | K24: ='Target Financials'!N36 -> 87.66831335 | L24: ='Target Financials'!O36 -> 99.92406116
C25: Acquirer | F25: ='Acquirer Financials'!I36 -> 82.508 | G25: ='Acquirer Financials'!J36 -> 88.573532 | H25: ='Acquirer Financials'!K36 -> 94.79252924 | I25: ='Acquirer Financials'!L36 -> 101.1690321 | J25: ='Acquirer Financials'!M36 -> 107.7071911 | K25: ='Acquirer Financials'!N36 -> 114.4112699 | L25: ='Acquirer Financials'!O36 -> 121.2856487
C26: Asset Write-up | F26: ='Pro-Forma Balance Sheet'!$L$12*dep_rate_write_up -> 50 | G26: ='Pro-Forma Balance Sheet'!$L$12*dep_rate_write_up -> 50 | H26: ='Pro-Forma Balance Sheet'!$L$12*dep_rate_write_up -> 50 | I26: ='Pro-Forma Balance Sheet'!$L$12*dep_rate_write_up -> 50 | J26: ='Pro-Forma Balance Sheet'!$L$12*dep_rate_write_up -> 50 | K26: ='Pro-Forma Balance Sheet'!$L$12*dep_rate_write_up -> 50 | L26: ='Pro-Forma Balance Sheet'!$L$12*dep_rate_write_up -> 50
D27: Total Depreciation | F27: =SUM(F24:F26) -> 176.1633455 | G27: =SUM(G24:G26) -> 189.1371335 | H27: 203.1029491 | I27: 218.1670525 | J27: 234.4482829 | K27: 252.0795833 | L27: 271.2097099
B28: EBIT | F28: =F22-F27 -> 521.0182455 | G28: =G22-G27 -> 607.7315515 | H28: 648.3442478 | I28: 693.3094359 | J28: 743.1347098 | K28: 798.3887787 | L28: 859.7088961
B29: Other Income
C30: Target
C31: Acquirer
B32: Interest Expense
C33: Existing Interest | F33: ='Debt Issues'!F7 -> 111.45 | G33: ='Debt Issues'!G7 -> 99.45 | H33: ='Debt Issues'!H7 -> 87.45 | I33: ='Debt Issues'!I7 -> 87.45 | J33: ='Debt Issues'!J7 -> 87.45 | K33: ='Debt Issues'!K7 -> 72.45 | L33: ='Debt Issues'!L7 -> 57.45
C34: Interest Expense on Revolver | F34: =F108 -> 0 | G34: =G108 -> 24.47839744 | H34: 61.92531151 | I34: 57.42204253 | J34: 51.4023514 | K34: 43.6827884 | L34: 64.82422358
C35: Interest Income on Cash Balance | F35: =F107 -> 0 | G35: =G107 -> 0 | H35: 0 | I35: 0 | J35: 0 | K35: 0 | L35: 0
D36: Net Interest Expense | F36: =F33+F34-F35 -> 111.45 | G36: =G33+G34-G35 -> 123.9283974 | H36: 149.3753115 | I36: 144.8720425 | J36: 138.8523514 | K36: 116.1327884 | L36: 122.2742236
B37: EBT | F37: =F28-F36 -> 409.5682455 | G37: =G28-G36 -> 483.803154 | H37: 498.9689363 | I37: 548.4373934 | J37: 604.2823584 | K37: 682.2559903 | L37: 737.4346725
C38: Taxes | F38: =MAX(F37*F8,0) -> 122.8704736 | G38: =MAX(G37*G8,0) -> 145.1409462 | H38: 149.6906809 | I38: 164.531218 | J38: 181.2847075 | K38: 204.6767971 | L38: 221.2304018
C39: Goodwill Writeoff
B40: Net Income | F40: =F37-F38-F39 -> 286.6977718 | G40: =G37-G38-G39 -> 338.6622078 | H40: 349.2782554 | I40: 383.9061754 | J40: 422.9976509 | K40: 477.5791932 | L40: 516.2042708
A42: Cash Flow
B43: Net Income | F43: =F40 -> 286.6977718 | G43: =G40 -> 338.6622078 | H43: 349.2782554 | I43: 383.9061754 | J43: 422.9976509 | K43: 477.5791932 | L43: 516.2042708
C44: Depreciation and Goodwill | F44: =F27 -> 176.1633455 | G44: =G27 -> 189.1371335 | H44: 203.1029491 | I44: 218.1670525 | J44: 234.4482829 | K44: 252.0795833 | L44: 271.2097099
C45: Working Capital Change | F45: =F96 -> -1.510777273 | G45: =G96 -> -1.087693598 | H45: -0.594850794 | I45: -0.02319434054 | J45: 0.6374512792 | K45: 1.398519833 | L45: 2.272857353
B46: Operating Cash Flow | F46: =F43+F44-F45 -> 464.3718945 | G46: =G43+G44-G45 -> 528.8870349 | H46: 552.9760553 | I46: 602.0964222 | J46: 656.8084825 | K46: 728.2602566 | L46: 785.1411233
C47: Capital Expenditures
C48: Target | F48: ='Target Financials'!I50 -> 154.02 | G48: ='Target Financials'!J50 -> 172.7064 | H48: ='Target Financials'!K50 -> 193.67046 | I48: ='Target Financials'!L50 -> 217.1900129 | J48: ='Target Financials'!M50 -> 243.5767864 | K48: ='Target Financials'!N50 -> 273.1805381 | L48: ='Target Financials'!O50 -> 306.3936952
C49: Acquiror | F49: ='Acquirer Financials'!I50 -> 137.7 | G49: ='Acquirer Financials'!J50 -> 151.6383 | H49: ='Acquirer Financials'!K50 -> 155.4749311 | I49: ='Acquirer Financials'!L50 -> 159.4125715 | J49: ='Acquirer Financials'!M50 -> 163.4539746 | K49: ='Acquirer Financials'!N50 -> 167.6019709 | L49: ='Acquirer Financials'!O50 -> 171.8594705
C50: Synergies | F50: =Synergies!F8 -> 0 | G50: =Synergies!G8 -> 0 | H50: =Synergies!H8 -> 0 | I50: =Synergies!I8 -> 0 | J50: =Synergies!J8 -> 0 | K50: =Synergies!K8 -> 0 | L50: =Synergies!L8 -> 0
D51: Total Capital Expenditure | F51: =F48+F49-F50 -> 291.72 | G51: =G48+G49-G50 -> 324.3447 | H51: 349.1453911 | I51: 376.6025844 | J51: 407.030761 | K51: 440.782509 | L51: 478.2531656
B52: Cash Before Financing | F52: =F46-F51 -> 172.6518945 | G52: =G46-G51 -> 204.5423349 | H52: 203.8306643 | I52: 225.4938378 | J52: 249.7777216 | K52: 287.4777476 | L52: 306.8879577
C53: New Debt Issues | F53: ='Debt Issues'!F4 -> 0 | G53: ='Debt Issues'!G4 -> 0 | H53: ='Debt Issues'!H4 -> 0 | I53: ='Debt Issues'!I4 -> 0 | J53: ='Debt Issues'!J4 -> 0 | K53: ='Debt Issues'!K4 -> 0 | L53: ='Debt Issues'!L4 -> 0
C54: New Equity Issues
C55: Debt Repayments | F55: ='Debt Issues'!F5 -> 0 | G55: ='Debt Issues'!G5 -> 600 | H55: ='Debt Issues'!H5 -> 0 | I55: ='Debt Issues'!I5 -> 0 | J55: ='Debt Issues'!J5 -> 0 | K55: ='Debt Issues'!K5 -> 450 | L55: ='Debt Issues'!L5 -> 0
C56: Dividends | F56: =F9*F113 -> 139.4982502 | G56: 139.4982502 | H56: 139.4982502 | I56: 139.4982502 | J56: 139.4982502 | K56: 139.4982502 | L56: 139.4982502
B57: Cash After Dividends | F57: =F52+F53+F54-F55-F56 -> 33.15364434 | G57: =G52+G53+G54-G55-G56 -> -534.9559153 | H57: 64.33241406 | I57: 85.99558762 | J57: 110.2794714 | K57: -302.0205026 | L57: 167.3897075
A59: Balance Sheet
B60: Assets
C61: Cash and Temporary Securities | E61: ='Pro-Forma Balance Sheet'!Q7 -> 0 | F61: =F104 -> 0 | G61: =G104 -> 0 | H61: 0 | I61: 0 | J61: 0 | K61: 0 | L61: 0
C62: Current Assets
C63: Target | F63: ='Target Financials'!I61 -> 99.9702 | G63: ='Target Financials'!J61 -> 112.1665644 | H63: ='Target Financials'!K61 -> 125.8508853 | I63: ='Target Financials'!L61 -> 141.2046933 | J63: ='Target Financials'!M61 -> 158.4316658 | K63: ='Target Financials'!N61 -> 177.7603291 | L63: ='Target Financials'!O61 -> 199.4470892
C64: Acquiror | F64: ='Acquirer Financials'!I61 -> 267.852 | G64: ='Acquirer Financials'!J61 -> 275.9411304 | H64: ='Acquirer Financials'!K61 -> 284.2745525 | I64: ='Acquirer Financials'!L61 -> 292.859644 | J64: ='Acquirer Financials'!M61 -> 301.7040053 | K64: ='Acquirer Financials'!N61 -> 310.8154662 | L64: ='Acquirer Financials'!O61 -> 320.2020933
D65: Total Current Assets | E65: ='Pro-Forma Balance Sheet'!Q8 -> 349.1 | F65: =F64+F63 -> 367.8222 | G65: =G64+G63 -> 388.1076948 | H65: 410.1254378 | I65: 434.0643373 | J65: 460.1356711 | K65: 488.5757953 | L65: 519.6491825
C66: Gross Plant | E66: ='Pro-Forma Balance Sheet'!Q9 -> 2862.363636 | F66: =E66+F51 -> 3154.083636 | G66: =F66+G51 -> 3478.428336 | H66: 3827.573727 | I66: 4204.176312 | J66: 4611.207073 | K66: 5051.989582 | L66: 5530.242747
C67: Accumulated Depreciation | E67: ='Pro-Forma Balance Sheet'!Q10 -> 314.4945455 | F67: =E67+F44 -> 490.6578909 | G67: =F67+G44 -> 679.7950244 | H67: 882.8979735 | I67: 1101.065026 | J67: 1335.513309 | K67: 1587.592892 | L67: 1858.802602
C68: Net Plant | E68: =E66-E67 -> 2547.869091 | F68: =F66-F67 -> 2663.425745 | G68: =G66-G67 -> 2798.633312 | H68: 2944.675754 | I68: 3103.111286 | J68: 3275.693764 | K68: 3464.39669 | L68: 3671.440145
C69: Other Assets | E69: ='Pro-Forma Balance Sheet'!Q12 -> 1000 | F69: =E69 -> 1000 | G69: =F69 -> 1000 | H69: 1000 | I69: 1000 | J69: 1000 | K69: 1000 | L69: 1000
C70: Goodwill | E70: ='Pro-Forma Balance Sheet'!Q13 -> 356.2615609 | F70: =E70-F39 -> 356.2615609 | G70: =F70-G39 -> 356.2615609 | H70: 356.2615609 | I70: 356.2615609 | J70: 356.2615609 | K70: 356.2615609 | L70: 356.2615609
B71: Total Assets | E71: =E61+E65+E68+E69+E70 -> 4253.230652 | F71: =F61+F65+F68+F69+F70 -> 4387.509506 | G71: =G61+G65+G68+G69+G70 -> 4543.002568 | H71: 4711.062753 | I71: 4893.437184 | J71: 5092.090996 | K71: 5309.234046 | L71: 5547.350889
B73: Liabilities and Capital
C74: Current Liabilities
C75: Target | F75: ='Target Financials'!I68 -> 56.91994091 | G75: ='Target Financials'!J68 -> 63.48584643 | H75: ='Target Financials'!K68 -> 70.84522587 | I75: ='Target Financials'!L68 -> 79.09473174 | J75: ='Target Financials'!M68 -> 88.34280508 | K75: ='Target Financials'!N68 -> 98.71111369 | L75: ='Target Financials'!O68 -> 110.3361657
C76: Acquiror | F76: ='Acquirer Financials'!I68 -> 492.3744 | G76: ='Acquirer Financials'!J68 -> 507.1816829 | H76: ='Acquirer Financials'!K68 -> 522.4348972 | I76: ='Acquirer Financials'!L68 -> 538.1474852 | J76: ='Acquirer Financials'!M68 -> 554.3332944 | K76: ='Acquirer Financials'!N68 -> 571.0065901 | L76: ='Acquirer Financials'!O68 -> 588.182068
D77: Total Current Liabilities | E77: ='Pro-Forma Balance Sheet'!Q18 -> 529.0613636 | F77: =F76+F75 -> 549.2943409 | G77: =G76+G75 -> 570.6675293 | H77: 593.2801231 | I77: 617.2422169 | J77: 642.6760995 | K77: 669.7177038 | L77: 698.5182337
C78: Debt Balance
C79: Existing Debt | E79: ='Pro-Forma Balance Sheet'!Q20 -> 2619 | F79: ='Debt Issues'!F6 -> 2319 | G79: ='Debt Issues'!G6 -> 1719 | H79: ='Debt Issues'!H6 -> 1719 | I79: ='Debt Issues'!I6 -> 1719 | J79: ='Debt Issues'!J6 -> 1719 | K79: ='Debt Issues'!K6 -> 1269 | L79: ='Debt Issues'!L6 -> 1269
C80: Revolver | E80: ='Pro-Forma Balance Sheet'!Q19 -> 382.8450364 | F80: =F105 -> 349.691392 | G80: =G105 -> 884.6473073 | H80: 820.3148933 | I80: 734.3193057 | J80: 624.0398343 | K80: 926.0603369 | L80: 758.6706294
D81: Total Debt | E81: =E80+E79 -> 3001.845036 | F81: =F80+F79 -> 2668.691392 | G81: =G80+G79 -> 2603.647307 | H81: 2539.314893 | I81: 2453.319306 | J81: 2343.039834 | K81: 2195.060337 | L81: 2027.670629
C82: Other Liabilities | E82: ='Pro-Forma Balance Sheet'!Q21 -> 0 | F82: =E82 -> 0 | G82: =F82 -> 0 | H82: 0 | I82: 0 | J82: 0 | K82: 0 | L82: 0
C83: Minority Interest | E83: ='Pro-Forma Balance Sheet'!Q23 -> 0 | F83: =E83 -> 0 | G83: =F83 -> 0 | H83: 0 | I83: 0 | J83: 0 | K83: 0 | L83: 0
C84: Beginning Equity | F84: =E88 -> 1022.324252 | G84: =F88 -> 1169.523773 | H84: 1368.687731 | I84: 1578.467736 | J84: 1822.875661 | K84: 2106.375062 | L84: 2444.456005
C85: Add: Net Income | F85: =F43 -> 286.6977718 | G85: =G43 -> 338.6622078 | H85: 349.2782554 | I85: 383.9061754 | J85: 422.9976509 | K85: 477.5791932 | L85: 516.2042708
C86: Add: Equity Issues | F86: =F54 -> 0 | G86: =G54 -> 0 | H86: 0 | I86: 0 | J86: 0 | K86: 0 | L86: 0
C87: Less: Dividends | F87: =F56 -> 139.4982502 | G87: =G56 -> 139.4982502 | H87: 139.4982502 | I87: 139.4982502 | J87: 139.4982502 | K87: 139.4982502 | L87: 139.4982502
C88: Ending Equity | E88: ='Pro-Forma Balance Sheet'!Q24 -> 1022.324252 | F88: =F84+F85+F86-F87 -> 1169.523773 | G88: =G84+G85+G86-G87 -> 1368.687731 | H88: 1578.467736 | I88: 1822.875661 | J88: 2106.375062 | K88: 2444.456005 | L88: 2821.162026
B89: Liabilities and Capital | E89: =E88+E83+E82+E81+E77 -> 4553.230652 | F89: =F88+F83+F82+F81+F77 -> 4387.509506 | G89: =G88+G83+G82+G81+G77 -> 4543.002568 | H89: 4711.062753 | I89: 4893.437184 | J89: 5092.090996 | K89: 5309.234046 | L89: 5547.350889
B91: Assets less Liabilities | E91: =E71-E89 -> -300 | F91: =F71-F89 -> 0 | G91: =G71-G89 -> 0 | H91: 0 | I91: 0 | J91: 0 | K91: 0 | L91: 0
B92: Check | D92: =AND(E92:L92) -> FALSE | E92: =ROUND(E91,0)=0 -> FALSE | F92: =ROUND(F91,0)=0 -> TRUE | G92: TRUE | H92: TRUE | I92: TRUE | J92: TRUE | K92: TRUE | L92: TRUE
B95: Total Trade Working Capital | E95: =E65-E77 -> -179.9613636 | F95: =F65-F77 -> -181.4721409 | G95: =G65-G77 -> -182.5598345 | H95: -183.1546853 | I95: -183.1778796 | J95: -182.5404284 | K95: -181.1419085 | L95: -178.8690512
B96: Change in Working Capital | F96: =F95-E95 -> -1.510777273 | G96: =G95-F95 -> -1.087693598 | H96: -0.594850794 | I96: -0.02319434054 | J96: 0.6374512792 | K96: 1.398519833 | L96: 2.272857353
B99: Net Revolver Balance
C100: Beginning Cash Less Short Term | F100: =E102 -> -382.8450364 | G100: =F102 -> -349.691392 | H100: -884.6473073 | I100: -820.3148933 | J100: -734.3193057 | K100: -624.0398343 | L100: -926.0603369
C101: Add Cash Flow | F101: =F57 -> 33.15364434 | G101: =G57 -> -534.9559153 | H101: 64.33241406 | I101: 85.99558762 | J101: 110.2794714 | K101: -302.0205026 | L101: 167.3897075
C102: Ending Revolver and Cash Balance | E102: =E61-E80 -> -382.8450364 | F102: =F100+F101 -> -349.691392 | G102: =G100+G101 -> -884.6473073 | H102: -820.3148933 | I102: -734.3193057 | J102: -624.0398343 | K102: -926.0603369 | L102: -758.6706294
C104: Cash Balance | F104: =MAX(F102,0) -> 0 | G104: =MAX(G102,0) -> 0 | H104: 0 | I104: 0 | J104: 0 | K104: 0 | L104: 0
C105: Revolver Balance | F105: =IF(F102<0,-F102,0) -> 349.691392 | G105: =IF(G102<0,-G102,0) -> 884.6473073 | H105: 820.3148933 | I105: 734.3193057 | J105: 624.0398343 | K105: 926.0603369 | L105: 758.6706294
C107: Cash Interest Income | F107: =E104*F7 -> 0 | G107: =F104*G7 -> 0 | H107: 0 | I107: 0 | J107: 0 | K107: 0 | L107: 0
C108: Revolver Intersest Expense | F108: =E105*F6 -> 0 | G108: =F105*G6 -> 24.47839744 | H108: 61.92531151 | I108: 57.42204253 | J108: 51.4023514 | K108: 43.6827884 | L108: 64.82422358
B110: Shares
C111: Beginning Shares | F111: =E113 -> 139.4982502 | G111: =F113 -> 139.4982502 | H111: 139.4982502 | I111: 139.4982502 | J111: 139.4982502 | K111: 139.4982502 | L111: 139.4982502
C112: New Shares
C113: Ending Shares | E113: ='Pro-Forma Balance Sheet'!Q28 -> 139.4982502 | F113: =F111+F112 -> 139.4982502 | G113: =G111+G112 -> 139.4982502 | H113: 139.4982502 | I113: 139.4982502 | J113: 139.4982502 | K113: 139.4982502 | L113: 139.4982502
B115: Consolidated
C116: EPS | F116: =IF(F113<>0,F43/F113,0) -> 2.055206939 | G116: =IF(G113<>0,G43/G113,0) -> 2.427716529 | H116: 2.503818184 | I116: 2.752050114 | J116: 3.03227926 | K116: 3.423549704 | L116: 3.700435454
C117: EBIT/Interest | F117: =IF(F36<>0,F28/F36,0) -> 4.674905747 | G117: =IF(G36<>0,G28/G36,0) -> 4.903892603 | H117: 4.34037085 | I117: 4.785667571 | J117: 5.351977855 | K117: 6.874792121 | L117: 7.030990432
C118: Debt/Captial | F118: =IF(F81+F88<>0,F81/(F81+F88),0) -> 0.6952948902 | G118: =IF(G81+G88<>0,G81/(G81+G88),0) -> 0.6554450423 | H118: 0.6166704563 | I118: 0.5737154935 | J118: 0.5265950443 | K118: 0.4731226652 | L118: 0.4181770693
C119: ROE | F119: =IF(AVERAGE(E88:F88)<>0,F43/AVERAGE(E88:F88),0) -> 0.2616036956 | G119: =IF(AVERAGE(F88:G88)<>0,G43/AVERAGE(F88:G88),0) -> 0.2668510542 | H119: 0.2370273705 | I119: 0.2257379691 | J119: 0.2153070296 | K119: 0.2098865838 | L119: 0.1960659766
C120: ROIC | F120: =IF((F81+F88-F61)<>0,(F28-F28*F8)/(F81+F88-F61),0) -> 0.09502145036 | G120: =IF((G81+G88-G61)<>0,(G28-G28*G8)/(G81+G88-G61),0) -> 0.1070937073 | H120: 0.1102148934 | I120: 0.1134926281 | J120: 0.116912967 | K120: 0.1204591392 | L120: 0.1241115687
B122: Standalone - Acquirer
C123: EPS | F123: ='Acquirer Financials'!I96 -> 2.250975 | G123: ='Acquirer Financials'!J96 -> 2.371061604 | H123: ='Acquirer Financials'!K96 -> 2.322287758 | I123: ='Acquirer Financials'!L96 -> 2.37755636 | J123: ='Acquirer Financials'!M96 -> 2.436335487 | K123: ='Acquirer Financials'!N96 -> 2.566242871 | L123: ='Acquirer Financials'!O96 -> 2.587804883
C124: EBIT/Interest | F124: ='Acquirer Financials'!I97 -> 6.924631845 | G124: ='Acquirer Financials'!J97 -> 8.475438978 | H124: ='Acquirer Financials'!K97 -> 6.459917421 | I124: ='Acquirer Financials'!L97 -> 6.509199711 | J124: ='Acquirer Financials'!M97 -> 6.581981245 | K124: ='Acquirer Financials'!N97 -> 7.889274435 | L124: ='Acquirer Financials'!O97 -> 7.173027166
C125: Debt/Captial | F125: ='Acquirer Financials'!I98 -> 0.6687998553 | G125: ='Acquirer Financials'!J98 -> 0.6570109945 | H125: ='Acquirer Financials'!K98 -> 0.645928063 | I125: ='Acquirer Financials'!L98 -> 0.6344663673 | J125: ='Acquirer Financials'!M98 -> 0.6225625552 | K125: ='Acquirer Financials'!N98 -> 0.609564319 | L125: ='Acquirer Financials'!O98 -> 0.5964029644
C126: ROE | F126: ='Acquirer Financials'!I99 -> 0.3444124917 | G126: ='Acquirer Financials'!J99 -> 0.3382443584 | H126: ='Acquirer Financials'!K99 -> 0.3107003469 | I126: ='Acquirer Financials'!L99 -> 0.2990683524 | J126: ='Acquirer Financials'!M99 -> 0.2887630822 | K126: ='Acquirer Financials'!N99 -> 0.286718495 | L126: ='Acquirer Financials'!O99 -> 0.2733225376
C127: ROIC | F127: ='Acquirer Financials'!I100 -> 0.1333228942 | G127: ='Acquirer Financials'!J100 -> 0.1315334651 | H127: ='Acquirer Financials'!K100 -> 0.1301589801 | I127: ='Acquirer Financials'!L100 -> 0.1291626305 | J127: ='Acquirer Financials'!M100 -> 0.1285153252 | K127: ='Acquirer Financials'!N100 -> 0.1281943211 | L127: ='Acquirer Financials'!O100 -> 0.1281821935

Sheet CONSOLIDATION -->
A1: CONSOLIDATION -->

Sheet Summary
D2: Equity Consideration | F2: =equity_consideration_cash -> 1700 | H2: Synergies | I2: =synergie -> 50 | M2: Years on Graph | O2: ='Transaction Assumptions'!M29 -> 7
D3: Equity Issued | F3: =value_of_shares -> 535.4842518 | H3: Write-up | I3: =write_up -> 1000 | M3: Business Risk Category
D4: Debt Issued | F4: =debt_issue_1 -> 1569 | H4: Scenario | M4: Target Bond Rating
S7: Equity Value | T7: =equity_consideration_cash -> 1700
S9: Debt | T9: =debt_issue_1 -> 1569
S11: Equity | T11: =value_of_shares -> 535.4842518
S14: Sources/Uses | U14: ='Sources and Uses'!G20 -> 0
S16: Base Case
S17: Low Case
S18: High Case

Sheet Verification
A1: Verification
C4: Sources and Uses | E4: ='Sources and Uses'!G22 -> TRUE
C6: Pro-Forma Balance Sheet | E6: ='Pro-Forma Balance Sheet'!Q27 -> FALSE
C8: On-Going Balance Sheet | E8: ='Consolidated Financials'!D92 -> FALSE
C10: Debt Reconciliation | E10: ='Debt Issues'!E9 -> FALSE
C12: Aggregate Check | E12: =AND(E4:E10) -> FALSE

Sheet Bond Rating Standards
A1: Bond Rating Standards
K5: AA | M5: A | O5: BBB | Q5: BB
K6: From | L6: To | M6: From | N6: To | O6: From | P6: To | Q6: From | R6: To
J7: 1 | K7: 2.5 | L7: 3 | M7: 1.5 | N7: 2.5 | O7: 1 | P7: 1.5
J8: 2 | K8: 3 | L8: 4 | M8: 2 | N8: 3 | O8: 1 | P8: 2
J9: 3 | K9: 3.5 | L9: 4.5 | M9: 2.5 | N9: 3.5 | O9: 1.5 | P9: 2.5 | Q9: 1 | R9: 1.5
J10: 4 | K10: 4.2 | L10: 5 | M10: 3 | N10: 4.2 | O10: 2.5 | P10: 3.5 | Q10: 1.5 | R10: 2.5
J11: 5 | K11: 4.5 | L11: 5.5 | M11: 3.8 | N11: 4.5 | O11: 2.8 | P11: 3.8 | Q11: 1.8 | R11: 2.8
J12: 6 | K12: 5.2 | L12: 6 | M12: 4.2 | N12: 5.2 | O12: 3 | P12: 4.2 | Q12: 2 | R12: 3
J13: 7 | K13: 6.5 | L13: 8 | M13: 4.5 | N13: 6.5 | O13: 3.2 | P13: 4.5 | Q13: 2.2 | R13: 3.2
J14: 8 | K14: 7.5 | L14: 10 | M14: 5.5 | N14: 7.5 | O14: 3.5 | P14: 5.5 | Q14: 2.5 | R14: 3.5
J15: 9 | M15: 7 | N15: 10 | O15: 4 | P15: 7 | Q15: 2.8 | R15: 4
J17: Row Num | K17: =L22 -> 5 | L17: =K17 -> 5 | M17: 5 | N17: 5 | O17: 5 | P17: 5 | Q17: 5 | R17: 5
J18: Target | K18: =INDEX(K7:K15,K17) -> 4.5 | L18: 5.5 | M18: 3.8 | N18: 4.5 | O18: 2.8 | P18: 3.8 | Q18: 1.8 | R18: 2.8
K21: Rating Target
K22: 3 | L22: 5
K25: AA | L25: 1
K26: A | L26: =L25+1 -> 2
K27: BBB | L27: 3
K28: BB | L28: 4
L29: 5
L30: 6
L31: 7
L32: 8
L33: 9
K38: ='Debt Issues'!F2 -> 2011 | L38: ='Debt Issues'!G2 -> 2012 | M38: ='Debt Issues'!H2 -> 2013 | N38: ='Debt Issues'!I2 -> 2014 | O38: ='Debt Issues'!J2 -> 2015 | P38: ='Debt Issues'!K2 -> 2016 | Q38: ='Debt Issues'!L2 -> 2017
J39: Minimum | K39: =CHOOSE(K22,K18,M18,O18,Q18) -> 2.8 | L39: =K39 -> 2.8 | M39: 2.8 | N39: 2.8 | O39: 2.8 | P39: 2.8 | Q39: 2.8
J40: Maximum | K40: =CHOOSE(K22,L18,N18,P18,R18) -> 3.8 | L40: 3.8 | M40: 3.8 | N40: 3.8 | O40: 3.8 | P40: 3.8 | Q40: 3.8
K42: =int_cov -> 4.674905747 | L42: 4.903892603 | M42: 4.34037085 | N42: 4.785667571 | O42: 5.351977855 | P42: 6.874792121 | Q42: 7.030990432

Sheet Sheet11
A1: Sheet11 | B1: ='Transaction Assumptions'!$E$3 | I1: ="EPS Comparison: "&target_name&" Combined with "&acquirer_name&CHAR(10)&" Transaction Value "&TEXT(total_enterprise_value,"0,0")&" Shares Issued "&TEXT(shares_issued,"0,0") -> EPS Comparison: Target Combined with Acquiror Transaction Value 2,090 Shares Issued 59
A2: debt_2 | B2: ='Transaction Assumptions'!$E$24 | I2: ="Interest Coverage Comparison: "&target_name&" Combined with "&acquirer_name&CHAR(10)&" Transaction Value "&TEXT(total_enterprise_value,"0,0")&" Debt Issued "&TEXT(debt_issue_1+debt_2,"0,0") -> Interest Coverage Comparison: Target Combined with Acquiror Transaction Value 2,090 Debt Issued 1,569
A3: debt_cap1 | B3: =OFFSET('Consolidated Financials'!$F$116,0,0,1,'Transaction Assumptions'!$L$26) | I3: ="Debt to Capital Comparison: "&target_name&" Combined with "&acquirer_name&" Transaction Value "&TEXT(total_enterprise_value,"0,0")&" Debt Issued "&TEXT(debt_issue_1+debt_2,"0,0") -> Debt to Capital Comparison: Target Combined with Acquiror Transaction Value 2,090 Debt Issued 1,569
A4: debt_cap2 | B4: =OFFSET('Consolidated Financials'!$F$123,0,0,1,'Transaction Assumptions'!$L$26) | I4: ="ROE Comparison: "&target_name&" Combined with "&acquirer_name&CHAR(10)&" Transaction Value "&TEXT(total_enterprise_value,"0,0")&" Shares Issued "&TEXT(shares_issued,"0,0") -> ROE Comparison: Target Combined with Acquiror Transaction Value 2,090 Shares Issued 59
A5: debt_issue_1 | B5: ='Transaction Assumptions'!$E$19 | I5: ="ROI Comparison: "&target_name&" Combined with "&acquirer_name&" Transaction Value "&TEXT(total_enterprise_value,"0,0")&" Shares Issued "&TEXT(shares_issued,"0,0") -> ROI Comparison: Target Combined with Acquiror Transaction Value 2,090 Shares Issued 59
A6: debt_issue_costs | B6: ='Transaction Assumptions'!$L$16
A7: debt_rate_1 | B7: ='Transaction Assumptions'!$E$20
A8: debt_rate_2 | B8: ='Transaction Assumptions'!$E$25
A9: debt_retire_rate_1 | B9: ='Transaction Assumptions'!$L$7
A10: debt_retire_term_1 | B10: ='Transaction Assumptions'!$L$8
A11: debt_retired_1 | B11: ='Transaction Assumptions'!$L$6
A12: debt_retirement_switch | B12: ='Transaction Assumptions'!$L$2
A13: debt_target | B13: ='Transaction Assumptions'!$E$10
A14: debt_term_1 | B14: ='Transaction Assumptions'!$E$21
A15: debt_term_2 | B15: ='Transaction Assumptions'!$E$26
A16: dep_rate_write_up | B16: ='Transaction Assumptions'!$L$20
A17: div_per_share | B17: ='Transaction Assumptions'!$L$23
A18: E10debt_target | B18: ='Transaction Assumptions'!$E$10
A19: eps1 | B19: =OFFSET('Consolidated Financials'!$F$114,0,0,1,'Transaction Assumptions'!$L$26)
A20: eps2 | B20: =OFFSET('Consolidated Financials'!$F$121,0,0,1,'Transaction Assumptions'!$L$26)
A21: equity_consideration_cash | B21: ='Transaction Assumptions'!$E$8
A22: equity_consideration_shares | B22: ='Transaction Assumptions'!$E$9
A23: income_rate | B23: ='Transaction Assumptions'!$L$22
A24: int_cov | B24: =OFFSET('Consolidated Financials'!$F$115,0,0,1,'Transaction Assumptions'!$L$26)
A25: int_cov2 | B25: =OFFSET('Consolidated Financials'!$F$122,0,0,1,'Transaction Assumptions'!$L$26)
A26: revolver_rate | B26: ='Transaction Assumptions'!$L$21
A27: roe_1 | B27: =OFFSET('Consolidated Financials'!$F$117,0,0,1,'Transaction Assumptions'!$L$26)
A28: roe_2 | B28: =OFFSET('Consolidated Financials'!$F$124,0,0,1,'Transaction Assumptions'!$L$26)
A29: roi_1 | B29: =OFFSET('Consolidated Financials'!$F$118,0,0,1,'Transaction Assumptions'!$L$26)
A30: roi_2 | B30: =OFFSET('Consolidated Financials'!$F$125,0,0,1,'Transaction Assumptions'!$L$26)
A31: scenario_name | B31: ='Transaction Assumptions'!$E$4
A32: shares_issued | B32: ='Transaction Assumptions'!$E$14
A33: stock_price | B33: ='Transaction Assumptions'!$E$15
A34: target_name | B34: ='Transaction Assumptions'!$E$2
A35: tax_rate | B35: ='Transaction Assumptions'!$L$19
A36: total_enterprise_value | B36: ='Transaction Assumptions'!$E$11
A37: transaction_cost | B37: ='Transaction Assumptions'!$L$15
A38: transaction_date | B38: ='Transaction Assumptions'!$E$5
A39: value_of_shares | B39: ='Transaction Assumptions'!$E$16
A40: x_range | B40: =OFFSET('Consolidated Financials'!$F$2,0,0,1,'Transaction Assumptions'!$L$26)
